[Event "*** Titled Tuesday Blitz"]
[Site "Chess.com"]
[Date "2019.01.01"]
[Round "8"]
[White "dolynachess"]
[Black "MatyChess1"]
[Result "0-1"]
[WhiteElo "2378"]
[BlackElo "2495"]
[TimeControl "180+2"]
[EndTime "14:51:06 PST"]
[Termination "MatyChess1 won by resignation"]

1. d4 {[%clk 0:02:53.2]} 1... Nf6 {[%clk 0:03:00]} 2. c4 {[%clk 0:02:51.2]} 2...
e6 {[%clk 0:03:00.7]} 3. g3 {[%clk 0:02:51.6]} 3... Bb4+ {[%clk 0:03:00.8]} 4.
Nd2 {[%clk 0:02:53]} 4... O-O {[%clk 0:02:58.5]} 5. Bg2 {[%clk 0:02:47.9]} 5...
c5 {[%clk 0:02:46.6]} 6. Nf3 {[%clk 0:02:48]} 6... cxd4 {[%clk 0:02:46.7]} 7.
Nxd4 {[%clk 0:02:49.9]} 7... Nc6 {[%clk 0:02:47.2]} 8. Nc2 {[%clk 0:02:50.4]}
8... Be7 {[%clk 0:02:36.5]} 9. O-O {[%clk 0:02:41.5]} 9... d5 {[%clk 0:02:35.7]}
10. cxd5 {[%clk 0:02:42.3]} 10... exd5 {[%clk 0:02:37.3]} 11. Nb3 {[%clk
0:02:38.4]} 11... Bg4 {[%clk 0:02:37.3]} 12. Ncd4 {[%clk 0:02:37.9]} 12... Qd7
{[%clk 0:02:36.1]} 13. Bf4 {[%clk 0:02:31.5]} 13... Rfe8 {[%clk 0:02:35.8]} 14.
Rc1 {[%clk 0:02:31.9]} 14... Rac8 {[%clk 0:02:34.7]} 15. Re1 {[%clk 0:02:32.1]}
15... Bh3 {[%clk 0:02:34.9]} 16. Bf3 {[%clk 0:02:09.3]} 16... Bb4 {[%clk
0:02:30.6]} 17. Bd2 {[%clk 0:02:06.9]} 17... Bf8 {[%clk 0:02:00.8]} 18. Nc5
{[%clk 0:01:59.4]} 18... Bxc5 {[%clk 0:01:57.2]} 0-1

[Event "*** Titled Tuesday Blitz"]
[Site "Chess.com"]
[Date "2019.01.01"]
[Round "8"]
[White "Alexander_Donchenko"]
[Black "snowlord"]
[Result "0-1"]
[WhiteElo "2654"]
[BlackElo "2703"]
[TimeControl "180+2"]
[EndTime "14:51:52 PST"]
[Termination "snowlord won by resignation"]

1. b3 {[%clk 0:03:01.9]} 1... Nf6 {[%clk 0:03:00.8]} 2. Bb2 {[%clk 0:03:02.7]}
2... g6 {[%clk 0:03:02.4]} 3. f4 {[%clk 0:03:03.3]} 3... d5 {[%clk 0:03:00.8]}
4. Nf3 {[%clk 0:03:04]} 4... Bg7 {[%clk 0:03:01.6]} 5. e3 {[%clk 0:03:05.1]}
5... O-O {[%clk 0:03:01.9]} 6. Be2 {[%clk 0:03:06]} 6... b6 {[%clk 0:02:59.1]}
7. O-O {[%clk 0:03:06.7]} 7... Bb7 {[%clk 0:03:00.1]} 8. Qe1 {[%clk 0:03:07.9]}
8... c5 {[%clk 0:02:58.2]} 9. d3 {[%clk 0:03:05.4]} 9... Nc6 {[%clk 0:02:56.1]}
10. Nbd2 {[%clk 0:03:05.8]} 10... d4 {[%clk 0:02:47.6]} 11. Nc4 {[%clk
0:02:46.8]} 11... b5 {[%clk 0:02:36]} 12. Nce5 {[%clk 0:02:47.2]} 12... Nb4
{[%clk 0:02:34.4]} 13. Bd1 {[%clk 0:02:45]} 13... dxe3 {[%clk 0:02:29.7]} 14.
Qxe3 {[%clk 0:02:38.1]} 14... Rc8 {[%clk 0:02:30.8]} 15. Qf2 {[%clk 0:02:30.9]}
15... Ng4 {[%clk 0:02:28.2]} 16. Nxg4 {[%clk 0:02:07.4]} 16... Bxb2 {[%clk
0:02:28.3]} 17. Nh6+ {[%clk 0:02:08.6]} 17... Kg7 {[%clk 0:02:12.4]} 18. Rb1
{[%clk 0:02:08.7]} 18... Bxf3 {[%clk 0:02:03.4]} 19. Rxb2 {[%clk 0:01:59.3]}
19... Bxd1 {[%clk 0:02:04.5]} 20. Qh4 {[%clk 0:01:28.4]} 20... Qd4+ {[%clk
0:02:03.2]} 21. Kh1 {[%clk 0:01:29.4]} 21... Qxb2 {[%clk 0:02:01.7]} 22. Rxd1
{[%clk 0:01:26.3]} 22... Qf6 {[%clk 0:01:56.5]} 23. Qh3 {[%clk 0:01:27.2]} 23...
Qxf4 {[%clk 0:01:56]} 0-1

[Event "*** Titled Tuesday Blitz"]
[Site "Chess.com"]
[Date "2019.01.01"]
[Round "8"]
[White "VladDobrov"]
[Black "abubakrtagelsir"]
[Result "1-0"]
[WhiteElo "2817"]
[BlackElo "2252"]
[TimeControl "180+2"]
[EndTime "14:52:00 PST"]
[Termination "VladDobrov won by resignation"]

1. e4 {[%clk 0:03:01.9]} 1... d6 {[%clk 0:03:00.5]} 2. d4 {[%clk 0:03:02.5]}
2... Nf6 {[%clk 0:03:00.9]} 3. Nc3 {[%clk 0:03:03.3]} 3... g6 {[%clk 0:03:01.6]}
4. Bg5 {[%clk 0:03:00]} 4... Bg7 {[%clk 0:03:01.9]} 5. Qd2 {[%clk 0:03:00.1]}
5... h6 {[%clk 0:03:02.4]} 6. Bh4 {[%clk 0:03:00.6]} 6... c6 {[%clk 0:03:02]} 7.
f4 {[%clk 0:03:01.3]} 7... d5 {[%clk 0:02:58]} 8. e5 {[%clk 0:03:00.6]} 8... Ne4
{[%clk 0:02:58.8]} 9. Nxe4 {[%clk 0:03:01.1]} 9... dxe4 {[%clk 0:02:59.8]} 10.
Bc4 {[%clk 0:02:55.7]} 10... O-O {[%clk 0:02:55.7]} 11. Ne2 {[%clk 0:02:56.3]}
11... a5 {[%clk 0:02:49.4]} 12. a3 {[%clk 0:02:51.4]} 12... Qb6 {[%clk
0:02:32.1]} 13. O-O {[%clk 0:02:50.1]} 13... Re8 {[%clk 0:02:02]} 14. Kh1 {[%clk
0:02:28.9]} 14... Bf5 {[%clk 0:01:41.1]} 15. Ng3 {[%clk 0:02:24.9]} 15... e3
{[%clk 0:01:36.2]} 16. Qxe3 {[%clk 0:02:21.7]} 16... Bxc2 {[%clk 0:01:35.1]} 17.
f5 {[%clk 0:02:16.2]} 17... g5 {[%clk 0:01:29.1]} 18. Bxg5 {[%clk 0:02:13.3]}
18... hxg5 {[%clk 0:01:29.8]} 19. Qxg5 {[%clk 0:02:14.4]} 19... c5 {[%clk
0:01:09.5]} 20. f6 {[%clk 0:02:12.1]} 20... exf6 {[%clk 0:00:58.4]} 21. exf6
{[%clk 0:02:12.7]} 1-0

[Event "*** Titled Tuesday Blitz"]
[Site "Chess.com"]
[Date "2019.01.01"]
[Round "8"]
[White "pedroholly22"]
[Black "Iyael"]
[Result "1-0"]
[WhiteElo "2278"]
[BlackElo "2163"]
[TimeControl "180+2"]
[EndTime "14:52:18 PST"]
[Termination "pedroholly22 won by checkmate"]

1. e4 {[%clk 0:03:00.4]} 1... c5 {[%clk 0:02:59.5]} 2. Nf3 {[%clk 0:03:00.4]}
2... Nc6 {[%clk 0:03:00.2]} 3. d4 {[%clk 0:03:01.7]} 3... cxd4 {[%clk
0:03:01.3]} 4. Nxd4 {[%clk 0:03:03.6]} 4... Nf6 {[%clk 0:03:01]} 5. Nc3 {[%clk
0:03:03.6]} 5... e5 {[%clk 0:03:01.5]} 6. Ndb5 {[%clk 0:03:03.9]} 6... d6 {[%clk
0:03:02]} 7. Nd5 {[%clk 0:03:04.4]} 7... Nxd5 {[%clk 0:03:01.8]} 8. exd5 {[%clk
0:03:06.3]} 8... Nb8 {[%clk 0:03:02.8]} 9. c4 {[%clk 0:03:06.8]} 9... Be7 {[%clk
0:03:02.7]} 10. c5 {[%clk 0:03:06.4]} 10... a6 {[%clk 0:02:55.9]} 11. Nxd6+
{[%clk 0:03:03.8]} 11... Bxd6 {[%clk 0:02:56.7]} 12. cxd6 {[%clk 0:03:05.7]}
12... Qxd6 {[%clk 0:02:57.9]} 13. Be3 {[%clk 0:03:07]} 13... O-O {[%clk
0:02:57.6]} 14. Rc1 {[%clk 0:03:07.9]} 14... Rd8 {[%clk 0:02:57.5]} 15. Bc4
{[%clk 0:03:07.7]} 15... Bf5 {[%clk 0:02:54.1]} 16. O-O {[%clk 0:03:05.3]} 16...
Nd7 {[%clk 0:02:55.1]} 17. Qe2 {[%clk 0:03:02.5]} 17... b5 {[%clk 0:02:51.4]}
18. Bb3 {[%clk 0:03:03]} 18... Rac8 {[%clk 0:02:52.8]} 19. f4 {[%clk 0:02:46.8]}
19... exf4 {[%clk 0:02:38.2]} 20. Bxf4 {[%clk 0:02:44.2]} 20... Qg6 {[%clk
0:02:38.7]} 21. d6 {[%clk 0:02:16]} 21... Bd3 {[%clk 0:02:36.2]} 22. Bxf7+
{[%clk 0:02:06.1]} 22... Kxf7 {[%clk 0:02:27.2]} 23. Qe7+ {[%clk 0:02:04.1]}
23... Kg8 {[%clk 0:02:26.5]} 24. Rxc8 {[%clk 0:01:58]} 24... Rxc8 {[%clk
0:02:23.8]} 25. Qxd7 {[%clk 0:01:58.8]} 25... Re8 {[%clk 0:02:24.8]} 26. Rc1
{[%clk 0:01:51.6]} 26... Be4 {[%clk 0:02:25.6]} 27. Bg3 {[%clk 0:01:51.1]} 27...
Bd5 {[%clk 0:02:14.2]} 28. h3 {[%clk 0:01:34.2]} 28... Be6 {[%clk 0:02:05.7]}
29. Qc6 {[%clk 0:01:29.2]} 29... Qxg3 {[%clk 0:02:05.6]} 30. Qxe8# {[%clk
0:01:29.4]} 1-0

[Event "*** Titled Tuesday Blitz"]
[Site "Chess.com"]
[Date "2019.01.01"]
[Round "8"]
[White "FightingChess"]
[Black "GremioPrudente"]
[Result "1-0"]
[WhiteElo "2272"]
[BlackElo "2031"]
[TimeControl "180+2"]
[EndTime "14:52:21 PST"]
[Termination "FightingChess won on time"]

1. e4 {[%clk 0:03:01.9]} 1... e6 {[%clk 0:02:58.9]} 2. d4 {[%clk 0:03:02.9]}
2... d5 {[%clk 0:02:58.6]} 3. Nd2 {[%clk 0:03:04.5]} 3... Nf6 {[%clk 0:02:58.6]}
4. e5 {[%clk 0:03:05.9]} 4... Nfd7 {[%clk 0:02:59.6]} 5. Bd3 {[%clk 0:03:07.5]}
5... c5 {[%clk 0:03:01]} 6. c3 {[%clk 0:03:08.9]} 6... Nc6 {[%clk 0:03:01]} 7.
Ne2 {[%clk 0:03:09.9]} 7... Qb6 {[%clk 0:03:01.9]} 8. Nf3 {[%clk 0:03:09.6]}
8... cxd4 {[%clk 0:03:01.9]} 9. cxd4 {[%clk 0:03:11.5]} 9... f6 {[%clk
0:03:03.1]} 10. exf6 {[%clk 0:03:12.9]} 10... Nxf6 {[%clk 0:03:03]} 11. O-O
{[%clk 0:03:14]} 11... Bd6 {[%clk 0:03:03.5]} 12. b3 {[%clk 0:03:15.4]} 12...
O-O {[%clk 0:03:02.6]} 13. Bf4 {[%clk 0:03:16.5]} 13... Bxf4 {[%clk 0:02:40.4]}
14. Nxf4 {[%clk 0:03:18.4]} 14... Ne4 {[%clk 0:02:35.9]} 15. Ne2 {[%clk
0:03:19]} 15... e5 {[%clk 0:02:13.5]} 16. Bxe4 {[%clk 0:02:58.5]} 16... dxe4
{[%clk 0:02:11.8]} 17. Nxe5 {[%clk 0:02:59.6]} 17... Bg4 {[%clk 0:01:49]} 18.
Nxg4 {[%clk 0:02:59.4]} 18... Rad8 {[%clk 0:00:22.4]} 19. d5 {[%clk 0:02:59.4]}
19... h5 {[%clk 0:00:14.1]} 20. Ne3 {[%clk 0:02:59.7]} 20... Ne5 {[%clk
0:00:13.3]} 21. Qd4 {[%clk 0:02:57]} 21... Nf3+ {[%clk 0:00:02.8]} 22. gxf3
{[%clk 0:02:56.9]} 22... Qg6+ {[%clk 0:00:03.5]} 23. Ng3 {[%clk 0:02:51.9]}
23... h4 {[%clk 0:00:02.9]} 24. Qxe4 {[%clk 0:02:51.3]} 1-0

[Event "*** Titled Tuesday Blitz"]
[Site "Chess.com"]
[Date "2019.01.01"]
[Round "8"]
[White "Anahita_Gholami"]
[Black "olksuna"]
[Result "1-0"]
[WhiteElo "2694"]
[BlackElo "2481"]
[TimeControl "180+2"]
[EndTime "14:52:26 PST"]
[Termination "Anahita_Gholami won by checkmate"]

1. d4 {[%clk 0:03:01.7]} 1... d5 {[%clk 0:03:00.3]} 2. c4 {[%clk 0:03:02.9]}
2... e6 {[%clk 0:03:01]} 3. Nc3 {[%clk 0:03:04.2]} 3... c6 {[%clk 0:03:02.1]} 4.
e4 {[%clk 0:03:04]} 4... dxe4 {[%clk 0:03:01.7]} 5. Nxe4 {[%clk 0:03:05.9]} 5...
Bb4+ {[%clk 0:03:02.3]} 6. Bd2 {[%clk 0:03:07.1]} 6... Qxd4 {[%clk 0:03:02.9]}
7. Bxb4 {[%clk 0:03:07.9]} 7... Qxe4+ {[%clk 0:03:02.9]} 8. Be2 {[%clk
0:03:09.5]} 8... a5 {[%clk 0:02:58.3]} 9. Bf8 {[%clk 0:03:02.8]} 9... Ne7 {[%clk
0:02:53.1]} 10. Bxg7 {[%clk 0:02:42.2]} 10... Rg8 {[%clk 0:02:53.4]} 11. Bc3
{[%clk 0:02:43.7]} 11... Rxg2 {[%clk 0:02:48.2]} 12. Nf3 {[%clk 0:02:44.5]}
12... e5 {[%clk 0:01:49.3]} 13. Qd2 {[%clk 0:02:01.6]} 13... Bg4 {[%clk
0:01:46.1]} 14. Nxe5 {[%clk 0:01:21.7]} 14... Bf5 {[%clk 0:01:44.3]} 15. Rd1
{[%clk 0:00:50.7]} 15... Rg3 {[%clk 0:01:27]} 16. Qd8# {[%clk 0:00:45.6]} 1-0

[Event "*** Titled Tuesday Blitz"]
[Site "Chess.com"]
[Date "2019.01.01"]
[Round "8"]
[White "Quiet_Desperation"]
[Black "MehdiHosseinipour"]
[Result "0-1"]
[WhiteElo "2377"]
[BlackElo "2564"]
[TimeControl "180+2"]
[EndTime "14:52:49 PST"]
[Termination "MehdiHosseinipour won by resignation"]

1. e4 {[%clk 0:03:01.9]} 1... c5 {[%clk 0:02:45.9]} 2. d4 {[%clk 0:03:01.7]}
2... cxd4 {[%clk 0:02:43.4]} 3. c3 {[%clk 0:03:03.1]} 3... Nf6 {[%clk
0:02:17.6]} 4. e5 {[%clk 0:03:03.2]} 4... Nd5 {[%clk 0:02:18.7]} 5. Nf3 {[%clk
0:03:04.1]} 5... Nc6 {[%clk 0:02:16.1]} 6. Bc4 {[%clk 0:03:05.7]} 6... Nb6
{[%clk 0:02:17.2]} 7. Bb3 {[%clk 0:03:07.1]} 7... d5 {[%clk 0:02:18.6]} 8. exd6
{[%clk 0:03:06.4]} 8... Qxd6 {[%clk 0:02:20.2]} 9. cxd4 {[%clk 0:03:07.9]} 9...
g6 {[%clk 0:02:21.7]} 10. Nc3 {[%clk 0:03:09]} 10... Bg7 {[%clk 0:02:23.2]} 11.
Be3 {[%clk 0:03:10.6]} 11... O-O {[%clk 0:02:23.5]} 12. h3 {[%clk 0:03:11.6]}
12... Na5 {[%clk 0:02:21.8]} 13. O-O {[%clk 0:03:12.4]} 13... Nxb3 {[%clk
0:02:22]} 14. axb3 {[%clk 0:03:14.3]} 14... Nd5 {[%clk 0:02:17.2]} 15. Ne4
{[%clk 0:03:14.4]} 15... Qb6 {[%clk 0:02:17.1]} 16. Nc5 {[%clk 0:03:03]} 16...
Bf5 {[%clk 0:02:17.7]} 17. Nh4 {[%clk 0:03:02.9]} 17... Be6 {[%clk 0:02:14.9]}
18. Qd2 {[%clk 0:03:00.2]} 18... Rfd8 {[%clk 0:02:11.3]} 19. Bh6 {[%clk
0:03:00]} 19... Bh8 {[%clk 0:02:03.1]} 20. Rfe1 {[%clk 0:02:58.2]} 20... Nc7
{[%clk 0:02:00.6]} 21. Nxe6 {[%clk 0:02:56.1]} 21... Nxe6 {[%clk 0:02:01.8]} 22.
d5 {[%clk 0:02:55.5]} 22... Qxb3 {[%clk 0:01:53]} 23. Rad1 {[%clk 0:02:51.6]}
23... Bf6 {[%clk 0:01:43]} 24. Nf3 {[%clk 0:02:39.7]} 24... Nc7 {[%clk
0:01:41.9]} 25. d6 {[%clk 0:02:24.2]} 25... Rxd6 {[%clk 0:01:42.5]} 26. Qf4
{[%clk 0:02:25.4]} 26... Rxd1 {[%clk 0:01:34.6]} 27. Qxc7 {[%clk 0:02:26.5]}
27... Rxe1+ {[%clk 0:01:30.8]} 28. Nxe1 {[%clk 0:02:28.4]} 28... Qd1 {[%clk
0:01:28.2]} 29. Kf1 {[%clk 0:02:29.8]} 29... Qd5 {[%clk 0:01:21.7]} 30. Nf3
{[%clk 0:02:31.7]} 30... Rd8 {[%clk 0:01:17.3]} 31. g4 {[%clk 0:02:27.8]} 31...
Qd7 {[%clk 0:01:14.3]} 32. Qc5 {[%clk 0:02:23.9]} 32... Qc6 {[%clk 0:01:09.1]}
33. Qa3 {[%clk 0:02:21.1]} 33... Qa6+ {[%clk 0:00:46.9]} 0-1

[Event "*** Titled Tuesday Blitz"]
[Site "Chess.com"]
[Date "2019.01.01"]
[Round "8"]
[White "HonzaVykouk"]
[Black "OparinGrigoriy"]
[Result "0-1"]
[WhiteElo "2659"]
[BlackElo "2916"]
[TimeControl "180+2"]
[EndTime "14:53:07 PST"]
[Termination "OparinGrigoriy won by resignation"]

1. e4 {[%clk 0:03:01.9]} 1... c6 {[%clk 0:03:01.5]} 2. d4 {[%clk 0:03:02.2]}
2... d5 {[%clk 0:03:03.4]} 3. Nd2 {[%clk 0:03:02.7]} 3... dxe4 {[%clk
0:03:04.8]} 4. Nxe4 {[%clk 0:03:04.6]} 4... Nf6 {[%clk 0:03:06.7]} 5. Nxf6+
{[%clk 0:03:05.2]} 5... exf6 {[%clk 0:03:08.6]} 6. c3 {[%clk 0:03:06.7]} 6...
Bd6 {[%clk 0:03:10.5]} 7. Bd3 {[%clk 0:03:08.1]} 7... O-O {[%clk 0:03:12.4]} 8.
Qc2 {[%clk 0:03:09.6]} 8... Re8+ {[%clk 0:03:14.3]} 9. Ne2 {[%clk 0:03:10.9]}
9... h5 {[%clk 0:03:16.2]} 10. Bd2 {[%clk 0:03:11.8]} 10... Nd7 {[%clk
0:03:17.2]} 11. O-O-O {[%clk 0:03:11.8]} 11... Nf8 {[%clk 0:03:19.1]} 12. Nf4
{[%clk 0:03:12.2]} 12... Bxf4 {[%clk 0:03:19.6]} 13. Bxf4 {[%clk 0:03:12.8]}
13... Qd5 {[%clk 0:03:21.5]} 14. Kb1 {[%clk 0:03:11.9]} 14... Qxg2 {[%clk
0:02:57.1]} 15. Rhg1 {[%clk 0:03:11.2]} 15... Qf3 {[%clk 0:02:58.6]} 16. Be3
{[%clk 0:03:09.8]} 16... Ng6 {[%clk 0:02:49.4]} 17. Ka1 {[%clk 0:03:01.8]} 17...
Bg4 {[%clk 0:02:38.1]} 18. Rde1 {[%clk 0:03:01.6]} 18... f5 {[%clk 0:02:34]} 19.
c4 {[%clk 0:02:39.7]} 19... f4 {[%clk 0:02:18.2]} 20. Bc1 {[%clk 0:02:14.2]}
20... Rad8 {[%clk 0:02:13.8]} 21. Rxe8+ {[%clk 0:02:08.3]} 21... Rxe8 {[%clk
0:02:15.7]} 22. Bxg6 {[%clk 0:02:08.9]} 22... fxg6 {[%clk 0:02:17.6]} 23. Qxg6
{[%clk 0:02:06]} 23... Qe4 {[%clk 0:02:18.7]} 24. Qg5 {[%clk 0:02:00.4]} 24...
Qxd4 {[%clk 0:02:13.1]} 25. Qxf4 {[%clk 0:01:50.2]} 25... Re4 {[%clk 0:02:05.4]}
26. Qd2 {[%clk 0:01:43.8]} 26... Qxd2 {[%clk 0:02:04.6]} 27. Bxd2 {[%clk
0:01:43.7]} 27... Rxc4 {[%clk 0:02:06.5]} 28. Bc3 {[%clk 0:01:41.7]} 28... g6
{[%clk 0:02:03.7]} 29. Re1 {[%clk 0:01:40.7]} 29... Kf7 {[%clk 0:02:03.9]} 30.
Re3 {[%clk 0:01:31.1]} 30... Rf4 {[%clk 0:02:02.4]} 31. Be1 {[%clk 0:01:30.7]}
31... Bf5 {[%clk 0:02:01.4]} 32. b3 {[%clk 0:01:30.6]} 32... Rh4 {[%clk
0:02:01.9]} 33. f4 {[%clk 0:01:20.7]} 33... Rxh2 {[%clk 0:01:59.6]} 34. Bb4
{[%clk 0:01:21.6]} 34... Be6 {[%clk 0:01:59.9]} 35. Bd6 {[%clk 0:01:15.1]} 35...
h4 {[%clk 0:02:01.3]} 36. Re1 {[%clk 0:01:11.5]} 36... Rg2 {[%clk 0:02:00]} 0-1

[Event "*** Titled Tuesday Blitz"]
[Site "Chess.com"]
[Date "2019.01.01"]
[Round "8"]
[White "JozefKneht"]
[Black "NemtsevIgor"]
[Result "1-0"]
[WhiteElo "2522"]
[BlackElo "2306"]
[TimeControl "180+2"]
[EndTime "14:53:23 PST"]
[Termination "JozefKneht won by resignation"]

1. e4 {[%clk 0:03:01.9]} 1... c6 {[%clk 0:03:00.4]} 2. d4 {[%clk 0:03:01.8]}
2... d5 {[%clk 0:03:01.6]} 3. Nc3 {[%clk 0:03:03.4]} 3... h6 {[%clk 0:03:02.2]}
4. Nf3 {[%clk 0:02:50.7]} 4... Nf6 {[%clk 0:03:02.5]} 5. Bd3 {[%clk 0:02:47.8]}
5... dxe4 {[%clk 0:03:01.7]} 6. Nxe4 {[%clk 0:02:48.4]} 6... Nxe4 {[%clk
0:03:02.9]} 7. Bxe4 {[%clk 0:02:49.4]} 7... Bf5 {[%clk 0:03:04.1]} 8. Bxf5
{[%clk 0:02:49.9]} 8... Qa5+ {[%clk 0:03:04.7]} 9. Bd2 {[%clk 0:02:51]} 9...
Qxf5 {[%clk 0:03:05.4]} 10. O-O {[%clk 0:02:52.6]} 10... e6 {[%clk 0:03:05.8]}
11. Re1 {[%clk 0:02:53.2]} 11... Nd7 {[%clk 0:03:05.3]} 12. c4 {[%clk
0:02:54.7]} 12... Bd6 {[%clk 0:03:04.7]} 13. Qb3 {[%clk 0:02:55.1]} 13... O-O-O
{[%clk 0:03:03.8]} 14. a4 {[%clk 0:02:39.8]} 14... g5 {[%clk 0:03:03.5]} 15. Bc3
{[%clk 0:02:36]} 15... g4 {[%clk 0:03:02.2]} 16. Ne5 {[%clk 0:02:36.6]} 16...
Nxe5 {[%clk 0:02:53.8]} 17. dxe5 {[%clk 0:02:35.4]} 17... Bc5 {[%clk 0:02:53.9]}
18. Rf1 {[%clk 0:02:34.3]} 18... Rd3 {[%clk 0:02:40.7]} 19. a5 {[%clk
0:02:32.3]} 19... a6 {[%clk 0:02:38.8]} 20. Qc2 {[%clk 0:02:32.1]} 20... Rhd8
{[%clk 0:02:33.2]} 21. b4 {[%clk 0:02:31.9]} 21... Bd4 {[%clk 0:02:14.8]} 22.
Bxd4 {[%clk 0:02:28.8]} 22... R8xd4 {[%clk 0:02:15.7]} 23. b5 {[%clk 0:02:29.3]}
23... Rd2 {[%clk 0:02:07.2]} 24. Qa4 {[%clk 0:02:23.5]} 24... cxb5 {[%clk
0:02:05]} 25. Qb4 {[%clk 0:02:24.1]} 25... Qxe5 {[%clk 0:01:52.2]} 26. Rac1
{[%clk 0:02:23.8]} 26... Kb8 {[%clk 0:01:36.5]} 27. Qf8+ {[%clk 0:02:22.4]}
27... Ka7 {[%clk 0:01:37.2]} 28. cxb5 {[%clk 0:02:21.5]} 28... Qxb5 {[%clk
0:01:37.2]} 29. Qxf7 {[%clk 0:02:22.1]} 29... e5 {[%clk 0:01:30.4]} 30. Qc7
{[%clk 0:02:15.6]} 30... Rf4 {[%clk 0:01:22.5]} 31. Rb1 {[%clk 0:02:14.8]} 31...
Rfxf2 {[%clk 0:01:13.3]} 32. Qb6+ {[%clk 0:02:13.8]} 32... Kb8 {[%clk
0:01:06.5]} 33. Rxf2 {[%clk 0:02:04.3]} 1-0

[Event "*** Titled Tuesday Blitz"]
[Site "Chess.com"]
[Date "2019.01.01"]
[Round "8"]
[White "Torrentec"]
[Black "Qingdom"]
[Result "0-1"]
[WhiteElo "2297"]
[BlackElo "2140"]
[TimeControl "180+2"]
[EndTime "14:53:46 PST"]
[Termination "Qingdom won on time"]

1. d4 {[%clk 0:02:57.8]} 1... Nf6 {[%clk 0:03:00.5]} 2. Nf3 {[%clk 0:02:59.2]}
2... c5 {[%clk 0:03:01.3]} 3. Nbd2 {[%clk 0:03:01.1]} 3... cxd4 {[%clk
0:03:01.7]} 4. Nxd4 {[%clk 0:03:02.7]} 4... d5 {[%clk 0:03:02.3]} 5. N4f3 {[%clk
0:03:03.6]} 5... Nc6 {[%clk 0:03:02.6]} 6. e3 {[%clk 0:02:59.6]} 6... e5 {[%clk
0:03:02]} 7. Bb5 {[%clk 0:02:57]} 7... Bd6 {[%clk 0:03:02.9]} 8. O-O {[%clk
0:02:57.5]} 8... O-O {[%clk 0:03:03.5]} 9. c4 {[%clk 0:02:57.2]} 9... a6 {[%clk
0:02:59]} 10. cxd5 {[%clk 0:02:40.8]} 10... Nxd5 {[%clk 0:02:54.3]} 11. Bxc6
{[%clk 0:02:39.2]} 11... bxc6 {[%clk 0:02:55.3]} 12. Nc4 {[%clk 0:02:32.2]}
12... Bg4 {[%clk 0:02:41.1]} 13. h3 {[%clk 0:02:26.4]} 13... Bxf3 {[%clk
0:02:41.5]} 14. Qxf3 {[%clk 0:02:25.5]} 14... Bc7 {[%clk 0:02:39.4]} 15. Rd1
{[%clk 0:02:21.1]} 15... Qe7 {[%clk 0:02:40]} 16. Bd2 {[%clk 0:02:21.7]} 16...
e4 {[%clk 0:02:39.2]} 17. Qe2 {[%clk 0:02:08.1]} 17... f5 {[%clk 0:02:36]} 18.
a3 {[%clk 0:02:02.5]} 18... Rf6 {[%clk 0:02:30.4]} 19. Rac1 {[%clk 0:01:59.3]}
19... Rg6 {[%clk 0:02:28.9]} 20. Qf1 {[%clk 0:01:16.6]} 20... Qh4 {[%clk
0:02:23.7]} 21. Kh1 {[%clk 0:01:15.3]} 21... Rf8 {[%clk 0:02:12]} 22. Bc3 {[%clk
0:01:14.2]} 22... f4 {[%clk 0:02:08.6]} 23. exf4 {[%clk 0:00:49.7]} 23... Bxf4
{[%clk 0:02:09]} 24. Rc2 {[%clk 0:00:25.6]} 24... e3 {[%clk 0:02:04.2]} 25. Be5
{[%clk 0:00:18.7]} 25... Bxe5 {[%clk 0:01:51.2]} 26. Nxe5 {[%clk 0:00:10.6]}
26... Rxf2 {[%clk 0:01:50.5]} 0-1

[Event "*** Titled Tuesday Blitz"]
[Site "Chess.com"]
[Date "2019.01.01"]
[Round "8"]
[White "Triumphmate"]
[Black "tgpgoat"]
[Result "1-0"]
[WhiteElo "2219"]
[BlackElo "1983"]
[TimeControl "180+2"]
[EndTime "14:53:51 PST"]
[Termination "Triumphmate won by resignation"]

1. e4 {[%clk 0:03:01.9]} 1... e5 {[%clk 0:02:57.1]} 2. Nf3 {[%clk 0:03:01.2]}
2... Nc6 {[%clk 0:02:57.1]} 3. Nc3 {[%clk 0:02:56.9]} 3... Nf6 {[%clk
0:02:55.9]} 4. Bb5 {[%clk 0:02:58.3]} 4... Be7 {[%clk 0:02:54.8]} 5. O-O {[%clk
0:02:57.8]} 5... d6 {[%clk 0:02:54.7]} 6. d4 {[%clk 0:02:58.5]} 6... exd4 {[%clk
0:02:55.3]} 7. Nxd4 {[%clk 0:03:00.4]} 7... Bd7 {[%clk 0:02:56.5]} 8. f4 {[%clk
0:03:00.6]} 8... Nxd4 {[%clk 0:02:55.4]} 9. Qxd4 {[%clk 0:03:02.5]} 9... Bxb5
{[%clk 0:02:55.3]} 10. Nxb5 {[%clk 0:03:04.4]} 10... a6 {[%clk 0:02:56.9]} 11.
Nc3 {[%clk 0:03:05.3]} 11... O-O {[%clk 0:02:55.1]} 12. Be3 {[%clk 0:03:05.6]}
12... Nd7 {[%clk 0:02:52.9]} 13. Rae1 {[%clk 0:03:00.8]} 13... Bf6 {[%clk
0:02:53.3]} 14. Qd3 {[%clk 0:03:00.4]} 14... Re8 {[%clk 0:02:53.9]} 15. Nd5
{[%clk 0:03:00.6]} 15... Bxb2 {[%clk 0:02:53.5]} 16. c3 {[%clk 0:03:00.7]} 16...
Ba3 {[%clk 0:02:53.2]} 17. Bd4 {[%clk 0:03:00]} 17... Bc5 {[%clk 0:02:52.9]} 18.
Qg3 {[%clk 0:02:58.1]} 18... Bxd4+ {[%clk 0:02:52.1]} 19. cxd4 {[%clk 0:03:00]}
19... Nf6 {[%clk 0:02:52.6]} 20. Nc3 {[%clk 0:02:58.1]} 20... Qd7 {[%clk
0:02:43.8]} 21. e5 {[%clk 0:02:56.4]} 21... dxe5 {[%clk 0:02:42.4]} 22. dxe5
{[%clk 0:02:58.3]} 22... Qd4+ {[%clk 0:02:41.5]} 23. Kh1 {[%clk 0:02:57.7]}
23... Nd5 {[%clk 0:02:32.8]} 24. Nxd5 {[%clk 0:02:53.8]} 24... Qxd5 {[%clk
0:02:33.7]} 25. f5 {[%clk 0:02:55.4]} 25... Qxa2 {[%clk 0:01:59.7]} 26. f6
{[%clk 0:02:54.8]} 26... g6 {[%clk 0:02:00.1]} 27. Qg5 {[%clk 0:02:55.4]} 27...
Qa3 {[%clk 0:02:00.1]} 28. Re3 {[%clk 0:02:49.8]} 28... Qf8 {[%clk 0:01:58]} 29.
e6 {[%clk 0:02:47.1]} 29... h6 {[%clk 0:01:50.9]} 30. Qg4 {[%clk 0:02:36.1]}
30... h5 {[%clk 0:01:36.6]} 31. Qg5 {[%clk 0:02:35.5]} 31... Kh7 {[%clk
0:01:16.7]} 32. e7 {[%clk 0:02:33.1]} 32... Qh6 {[%clk 0:01:16.7]} 33. Qd5
{[%clk 0:02:22.4]} 33... Kg8 {[%clk 0:01:02]} 34. Rg3 {[%clk 0:02:23.1]} 34...
c6 {[%clk 0:01:00.7]} 35. Qb3 {[%clk 0:02:21.7]} 35... a5 {[%clk 0:01:01.3]} 36.
Qxb7 {[%clk 0:02:18.1]} 36... a4 {[%clk 0:01:02.5]} 37. Qxc6 {[%clk 0:02:18.2]}
37... a3 {[%clk 0:01:03]} 38. Rxa3 {[%clk 0:02:19.3]} 38... Rac8 {[%clk
0:00:52.2]} 39. Qd5 {[%clk 0:02:16.2]} 39... Rc1 {[%clk 0:00:46.2]} 40. Rf3
{[%clk 0:02:14.9]} 40... Rxf1+ {[%clk 0:00:46]} 41. Rxf1 {[%clk 0:02:16.8]}
41... Qe3 {[%clk 0:00:43.1]} 42. Qd7 {[%clk 0:02:16.1]} 42... Rb8 {[%clk
0:00:40.2]} 43. Qd8+ {[%clk 0:02:13.1]} 43... Rxd8 {[%clk 0:00:38]} 44. exd8=Q+
{[%clk 0:02:15]} 44... Kh7 {[%clk 0:00:38.5]} 45. Qf8 {[%clk 0:02:15.4]} 1-0